bitfinex/quotes_BTCUSD_20250727
["timestamp","ask_amount","ask_price","bid_price","bid_amount"]
[1753647075145,0.29847539,119240.0,119230.0,0.70113734]
[1753647075856,0.29847539,119240.0,119230.0,0.69275041]
[1753647076077,0.29847539,119240.0,119230.0,0.32989454]
[1753647076285,0.29847539,119240.0,119230.0,0.69275041]
[1753647077015,0.29847539,119240.0,119230.0,0.68436333]
[1753647077588,0.29847539,119240.0,119230.0,0.32150746]
[1753647079482,0.29847539,119240.0,119230.0,0.32989454]
[1753647080724,0.29847539,119240.0,119230.0,0.33828155]
[1753647080853,0.29847539,119240.0,119230.0,0.32989454]
[1753647081082,0.29847539,119240.0,119230.0,0.33828155]
[1753647081595,0.29847539,119240.0,119230.0,0.83828155]
[1753647082565,0.29847539,119240.0,119230.0,0.82989454]
[1753647083254,0.29847539,119240.0,119230.0,0.81312031]
[1753647083437,0.29847539,119240.0,119230.0,0.82150739]
[1753647083592,0.29847539,119240.0,119230.0,0.82150746]
[1753647084210,0.29847539,119240.0,119230.0,0.82989454]
[1753647084722,0.29847539,119240.0,119230.0,0.82150746]
[1753647084943,0.29847539,119240.0,119230.0,0.84721843]
[1753647085907,0.29847539,119240.0,119230.0,0.83883128]
[1753647086141,0.35424603,119240.0,119230.0,0.83883128]
[1753647086362,0.29847539,119240.0,119230.0,0.83883128]
[1753647087007,0.29847539,119240.0,119230.0,0.96615128]
[1753647087905,0.29847539,119240.0,119230.0,0.97453843]
[1753647088120,0.29847539,119240.0,119230.0,0.98292544]
[1753647088308,0.29847539,119240.0,119230.0,0.98292551]
[1753647088878,0.13913204,119240.0,119230.0,0.98292551]
[1753647089017,0.14751841,119240.0,119230.0,0.98292551]
[1753647089223,0.14751806,119240.0,119230.0,0.99131244]
[1753647089438,0.14751806,119240.0,119230.0,0.99131252]
[1753647089811,0.15590443,119240.0,119230.0,0.99131252]
[1753647089944,0.14751806,119240.0,119230.0,0.99131252]
[1753647090403,0.15590443,119240.0,119230.0,0.99131252]
[1753647090606,0.15590443,119240.0,119230.0,0.98292551]
[1753647091066,0.14751806,119240.0,119230.0,0.99131252]
[1753647091271,0.14751806,119240.0,119230.0,0.99969945]
[1753647091711,0.15590443,119240.0,119230.0,0.98292551]
[1753647092423,0.14751799,119240.0,119230.0,0.99969938]
[1753647092632,0.14751799,119240.0,119230.0,0.99969945]
[1753647092842,0.14751799,119240.0,119230.0,1.00808631]
[1753647092981,0.15590422,119240.0,119230.0,0.99969945]
[1753647093385,0.14751799,119240.0,119230.0,1.00808595]
[1753647093634,0.15590422,119240.0,119230.0,1.1013123]
[1753647093843,0.14751799,119240.0,119230.0,1.10969916]
[1753647094321,0.14751799,119240.0,119230.0,1.1013123]
[1753647094531,0.14751799,119240.0,119230.0,1.11808595]
[1753647094739,0.14751799,119240.0,119230.0,1.10969916]
[1753647094952,0.14751799,119240.0,119230.0,1.47255503]
[1753647095822,0.14751792,119240.0,119230.0,1.47255474]
[1753647096026,0.15590422,119240.0,119230.0,0.98292522]
[1753647096175,0.15590422,119240.0,119230.0,1.34578109]
[1753647096585,0.15590415,119240.0,119230.0,1.34578109]
[1753647096773,0.16429052,119240.0,119230.0,1.33739423]
[1753647096994,0.15590415,119240.0,119230.0,1.35416817]
[1753647097205,0.13074581,119240.0,119230.0,1.36255503]
[1753647097409,0.64682853,119250.0,119240.0,0.22438792]
[1753647097644,0.65521371,119250.0,119240.0,0.86216974]
[1753647097889,0.52793371,119250.0,119240.0,0.49931387]
[1753647098095,0.27793364,119250.0,119240.0,0.86216974]
[1753647098935,0.28631889,119250.0,119240.0,0.86216974]
[1753647099140,0.28631882,119250.0,119240.0,0.49092792]
[1753647099343,0.29470421,119250.0,119240.0,0.73539763]
[1753647099738,0.29470421,119250.0,119240.0,0.38931401]
[1753647099880,0.29470421,119250.0,119240.0,0.75216988]
[1753647100475,0.29470414,119250.0,119240.0,0.38092792]
[1753647100673,0.28631882,119250.0,119240.0,0.76055583]
[1753647100879,0.29470414,119250.0,119240.0,0.38931401]
[1753647101286,0.29470414,119250.0,119240.0,0.75216988]
[1753647101493,0.29470414,119250.0,119240.0,0.7605559]
[1753647102358,0.28631882,119250.0,119240.0,0.76055541]
[1753647102986,0.28631882,119250.0,119240.0,0.76155541]
[1753647103537,0.26954853,119250.0,119240.0,0.76155541]
[1753647104340,0.26954853,119250.0,119240.0,0.76984044]
[1753647104535,0.26954853,119250.0,119240.0,0.87984044]
[1753647107428,0.27793371,119250.0,119240.0,0.76984044]
[1753647110445,0.2863191,119250.0,119240.0,0.75306847]
[1753647110604,0.2863191,119250.0,119240.0,0.76145449]
[1753647110811,0.2863191,119250.0,119240.0,0.3902126]
[1753647111021,0.28631896,119250.0,119240.0,0.76145442]
[1753647111539,0.28631896,119250.0,119240.0,0.76145449]
[1753647111738,0.28631896,119250.0,119240.0,0.76984044]
[1753647111942,0.28631896,119250.0,119240.0,0.76145449]
[1753647112148,0.27793371,119250.0,119240.0,0.76984044]
[1753647113338,0.27793371,119250.0,119240.0,0.40698457]
[1753647113547,0.28631896,119250.0,119240.0,0.40698457]
[1753647113930,0.28631896,119250.0,119240.0,0.39859862]
[1753647114098,0.28631896,119250.0,119240.0,0.40698457]
[1753647114939,0.28631896,119250.0,119240.0,0.76984044]
[1753647115951,0.29470428,119250.0,119240.0,0.74468238]
[1753647116156,0.30308974,119250.0,119240.0,0.38182651]
[1753647116369,0.30308974,119250.0,119240.0,0.3902126]
[1753647116574,0.29470428,119250.0,119240.0,0.3902126]
[1753647117238,0.65756015,119250.0,119240.0,0.39859862]
[1753647117647,0.65756015,119250.0,119240.0,0.3902126]
[1753647117853,0.66594561,119250.0,119240.0,0.3902126]
[1753647118034,0.65756015,119250.0,119240.0,0.3902126]
[1753647118343,0.65756015,119250.0,119240.0,0.39859862]
[1753647119307,0.65756015,119250.0,119240.0,0.3902126]
[1753647119979,0.65756015,119250.0,119240.0,0.39859862]
[1753647120662,0.66594561,119250.0,119240.0,0.38182651]
[1753647120868,0.66594561,119250.0,119240.0,0.36505398]
[1753647121068,0.66594561,119250.0,119240.0,0.38182665]
[1753647121280,0.67433114,119250.0,119240.0,0.36622665]
[1753647121492,0.40483114,119250.0,119240.0,0.36622665]
[1753647121656,0.39644561,119250.0,119240.0,0.36622665]
[1753647122076,0.39644561,119250.0,119240.0,0.37461281]
[1753647122271,0.39644561,119250.0,119240.0,0.36622665]
[1753647122519,0.39644561,119250.0,119240.0,0.3829989]
[1753647122973,0.03358974,119250.0,119240.0,0.3829989]
[1753647123223,0.39644561,119250.0,119240.0,0.37461281]
[1753647123425,0.39644561,119250.0,119240.0,0.35664281]
[1753647123861,0.39644561,119250.0,119240.0,0.34825665]
[1753647124087,0.39644561,119250.0,119240.0,0.37254281]
[1753647124567,0.39644561,119250.0,119240.0,0.37458281]
[1753647125008,0.03358974,119250.0,119240.0,0.37458281]
[1753647125228,0.38806015,119250.0,119240.0,0.3829689]
[1753647125435,0.39644554,119250.0,119240.0,0.3829689]
[1753647126491,0.40483107,119250.0,119240.0,0.36619665]
[1753647127291,0.39644554,119250.0,119240.0,0.36619665]
[1753647127514,0.39644554,119250.0,119240.0,0.37458281]
[1753647127869,0.404831,119250.0,119240.0,0.36619665]
[1753647128418,0.404831,119250.0,119240.0,0.37458281]
[1753647129082,0.404831,119250.0,119240.0,0.36619665]
[1753647129696,0.03358967,119250.0,119240.0,0.36619665]
[1753647129926,0.39644554,119250.0,119240.0,0.39048267]
[1753647130184,0.38806015,119250.0,119240.0,0.39048267]
[1753647131112,4.853e-05,119250.0,119240.0,0.39886862]
[1753647131315,4.853e-05,119250.0,119240.0,0.76172449]
[1753647132172,4.853e-05,119250.0,119240.0,0.39886862]
[1753647134315,0.00843364,119250.0,119240.0,0.39886862]
[1753647134930,0.00843364,119250.0,119240.0,0.76172449]
[1753647135145,4.853e-05,119250.0,119240.0,0.76172449]
[1753647135881,4.853e-05,119250.0,119240.0,0.39886862]
[1753647136078,4.853e-05,119250.0,119240.0,0.76172449]
[1753647136880,4.853e-05,119250.0,119240.0,0.76172449]
[1753647137500,4.853e-05,119250.0,119240.0,0.39886862]
[1753647138465,4.853e-05,119250.0,119240.0,0.76172449]
[1753647139760,0.00843378,119250.0,119240.0,0.39048267]
[1753647140132,0.37128965,119250.0,119240.0,0.39048267]
[1753647140542,0.37128965,119250.0,119240.0,0.39886862]
[1753647140847,0.37967511,119250.0,119240.0,0.38209665]
[1753647141074,0.37967511,119250.0,119240.0,0.37458281]
[1753647141614,0.37967511,119250.0,119240.0,0.3829689]
[1753647142204,0.37967504,119250.0,119240.0,0.3829689]
[1753647144965,0.37967504,119250.0,119240.0,0.39135492]
[1753647145392,0.00843378,119250.0,119240.0,0.40695443]
[1753647145601,0.00843371,119250.0,119240.0,0.40695443]
[1753647145991,0.00843364,119250.0,119240.0,0.40695443]
[1753647146459,0.37128951,119250.0,119240.0,0.40695443]
[1753647146863,0.38805994,119250.0,119240.0,0.40695443]
[1753647147405,0.38805994,119250.0,119240.0,0.3986694]
[1753647148229,0.37967469,119250.0,119240.0,0.3986694]
[1753647150556,0.37128951,119250.0,119240.0,0.3986694]
[1753647150765,0.00843364,119250.0,119240.0,0.3986694]
[1753647151374,4.853e-05,119250.0,119240.0,0.3986694]
[1753647151605,0.3629044,119250.0,119240.0,0.3986694]
[1753647152014,4.853e-05,119250.0,119240.0,0.3986694]
[1753647154447,0.00843364,119250.0,119240.0,0.3986694]
[1753647156071,0.00843364,119250.0,119240.0,0.3830694]
[1753647156405,4.853e-05,119250.0,119240.0,0.3830694]
[1753647156631,4.853e-05,119250.0,119240.0,0.3994694]
[1753647158271,4.853e-05,119250.0,119240.0,0.3494694]
[1753647161010,0.00843371,119250.0,119240.0,0.3494694]
[1753647164110,0.00843371,119250.0,119240.0,0.71232527]
[1753647164310,4.853e-05,119250.0,119240.0,0.71232527]
[1753647164763,0.00843364,119250.0,119240.0,0.71232527]
[1753647164971,4.853e-05,119250.0,119240.0,0.71232527]
[1753647165707,0.00843364,119250.0,119240.0,0.71232527]
[1753647165925,4.853e-05,119250.0,119240.0,0.71232527]
[1753647166932,4.853e-05,119250.0,119240.0,0.3494694]
[1753647167132,4.853e-05,119250.0,119240.0,0.71232527]
[1753647169235,4.853e-05,119250.0,119240.0,0.91680257]
[1753647169438,4.853e-05,119250.0,119240.0,0.79680257]
[1753647170077,4.853e-05,119250.0,119240.0,0.4339467]
[1753647172141,0.3629044,119250.0,119240.0,0.4339467]
[1753647172892,4.853e-05,119250.0,119240.0,0.4339467]
[1753647173069,0.00843371,119250.0,119240.0,0.4339467]
[1753647173284,0.00843364,119250.0,119240.0,0.4339467]
[1753647173775,0.01681882,119250.0,119240.0,0.4339467]
[1753647174092,0.00843364,119250.0,119240.0,0.4339467]
[1753647174589,0.00843364,119250.0,119240.0,0.4175467]
[1753647174836,4.853e-05,119250.0,119240.0,0.4175467]
[1753647175261,0.00843371,119250.0,119240.0,0.4175467]
[1753647175391,0.00843364,119250.0,119240.0,0.4326467]
[1753647177366,4.853e-05,119250.0,119240.0,0.4326467]
[1753647178134,0.00843364,119250.0,119240.0,0.4326467]
[1753647178646,0.37128951,119250.0,119240.0,0.4326467]
[1753647179090,4.853e-05,119250.0,119240.0,0.4326467]
[1753647180009,4.853e-05,119250.0,119240.0,0.79550257]
[1753647180236,4.853e-05,119250.0,119240.0,0.4326467]
[1753647180499,4.853e-05,119250.0,119240.0,0.89550257]
[1753647182263,4.853e-05,119250.0,119240.0,0.5326467]
[1753647182749,4.853e-05,119250.0,119240.0,0.89550257]
[1753647184349,0.3629044,119250.0,119240.0,0.5326467]
[1753647184831,4.853e-05,119250.0,119240.0,0.5326467]
[1753647186038,0.00843364,119250.0,119240.0,0.5326467]
[1753647186230,0.3629044,119250.0,119240.0,0.5326467]
[1753647187954,0.37128958,119250.0,119240.0,0.52426068]
[1753647188847,0.3629044,119250.0,119240.0,0.52426068]
[1753647189084,0.37128958,119250.0,119240.0,0.52426068]
[1753647191026,0.91863097,119250.0,119240.0,0.34837625]
[1753647191270,0.78378757,119250.0,119240.0,0.43871262]
[1753647191745,0.58864658,119250.0,119240.0,0.46143262]
[1753647191999,0.58026133,119250.0,119240.0,0.47299892]
[1753647192475,0.58026133,119250.0,119240.0,0.46461262]
[1753647193418,0.58026133,119250.0,119240.0,0.47299892]
[1753647193612,0.58026133,119250.0,119240.0,0.46461262]
[1753647194032,0.58026133,119250.0,119240.0,0.47299892]
[1753647194456,0.58026133,119250.0,119240.0,0.48138515]
[1753647194891,0.58026133,119250.0,119240.0,0.47299892]
[1753647195537,0.58026133,119250.0,119240.0,0.48138515]
[1753647195758,0.58026133,119250.0,119240.0,0.47299892]
[1753647196027,0.42093219,119250.0,119240.0,0.48138515]
[1753647196581,0.58864707,119250.0,119240.0,0.47299892]
[1753647197610,0.58864707,119250.0,119240.0,0.48138515]
[1753647197915,0.58864707,119250.0,119240.0,0.47299892]
[1753647198134,0.58864707,119250.0,119240.0,0.48138515]
[1753647198345,0.38806078,119250.0,119240.0,0.49190124]
[1753647198484,0.38806078,119250.0,119240.0,0.50770124]
[1753647198681,0.38806078,119250.0,119240.0,0.49931515]
[1753647198878,0.39644645,119250.0,119240.0,0.50770131]
[1753647199727,0.39644645,119250.0,119240.0,0.5160874]
[1753647199931,0.39644645,119250.0,119240.0,0.50770131]
[1753647200152,0.39644645,119250.0,119240.0,0.49931515]
[1753647200354,0.56416133,119250.0,119240.0,0.48254262]
[1753647200578,0.56416168,119250.0,119240.0,0.46674262]
[1753647200781,0.56416168,119250.0,119240.0,0.52544892]
[1753647201007,0.56416168,119250.0,119240.0,0.46674262]
[1753647201213,0.56416168,119250.0,119240.0,0.47512892]
[1753647203547,0.56416168,119250.0,119240.0,0.48351515]
[1753647204284,0.61993232,119250.0,119240.0,0.47512892]
[1753647204500,0.56416168,119250.0,119240.0,0.47512892]
[1753647204710,0.20130581,119250.0,119240.0,0.48351515]
[1753647204914,0.56416168,119250.0,119240.0,0.48351515]
[1753647205133,0.56416168,119250.0,119240.0,0.49951515]
[1753647206019,0.56416168,119250.0,119240.0,0.49112892]
[1753647206979,0.56416168,119250.0,119240.0,0.48274262]
[1753647207183,0.56416168,119250.0,119240.0,0.49112892]
[1753647208251,0.56416168,119250.0,119240.0,0.49951515]
[1753647208963,0.56416168,119250.0,119240.0,0.49112892]
[1753647209170,0.56416168,119250.0,119240.0,0.48064192]
[1753647209534,0.56416168,119250.0,119240.0,0.48902815]
[1753647209934,0.56416168,119250.0,119240.0,0.48064192]
[1753647210161,0.56416168,119250.0,119240.0,0.48902815]
[1753647210683,0.56416168,119250.0,119240.0,0.48064192]
[1753647211663,0.56416168,119250.0,119240.0,0.48902815]
[1753647212091,0.37967539,119250.0,119240.0,0.49741417]
[1753647212313,0.37967511,119250.0,119240.0,0.50580012]
[1753647212915,0.37967511,119250.0,119240.0,0.49741417]
[1753647212916,0.38806071,119250.0,119240.0,0.49741417]
[1753647213117,0.37967511,119250.0,119240.0,0.49741417]
[1753647213517,0.38806064,119250.0,119240.0,0.50580012]
[1753647213988,0.38806064,119250.0,119240.0,0.51261417]
[1753647214918,0.39644624,119250.0,119240.0,0.51261417]
[1753647215294,0.38806064,119250.0,119240.0,0.51261417]
[1753647215956,0.39644631,119250.0,119240.0,0.49741417]
[1753647216152,0.02520477,119250.0,119240.0,0.49741417]
[1753647216356,0.38806064,119250.0,119240.0,0.48902815]
[1753647216595,0.39644631,119250.0,119240.0,0.49741424]
[1753647216996,0.38806064,119250.0,119240.0,0.49741424]
[1753647217290,0.37967497,119250.0,119240.0,0.50579984]
[1753647217839,0.38806043,119250.0,119240.0,0.50579984]
[1753647219716,0.90186061,119250.0,119240.0,0.1854773]
[1753647219913,0.92574621,119250.0,119240.0,0.35320625]
[1753647220085,0.94685075,119250.0,119240.0,0.26872895]
[1753647220291,1.07449075,119250.0,119240.0,0.101]
[1753647220947,1.07449075,119250.0,119240.0,0.001]
[1753647226806,0.71163488,119250.0,119240.0,0.001]
[1753647227261,1.07449075,119250.0,119240.0,0.001]
[1753647229118,1.0826687,119250.0,119240.0,0.001]
[1753647230011,1.05949075,119250.0,119240.0,0.001]
[1753647230238,1.07589075,119250.0,119240.0,0.001]
[1753647231189,0.33377901,119250.0,119240.0,0.001]
[1753647231396,1.04500075,119250.0,119240.0,0.001]
[1753647232252,0.68214488,119250.0,119240.0,0.001]
[1753647233946,0.68214488,119250.0,119240.0,0.0252]
[1753647237278,1.04500075,119250.0,119240.0,0.0252]
[1753647238533,1.04500075,119250.0,119240.0,0.02814]
[1753647239385,0.68214488,119250.0,119240.0,0.02814]
[1753647239753,0.68214488,119250.0,119240.0,0.19586895]
[1753647240143,0.66664488,119250.0,119240.0,0.19586895]
[1753647240357,0.66664488,119250.0,119240.0,0.02814]
[1753647246253,1.04580075,119250.0,119240.0,0.02814]
[1753647248891,1.02950075,119250.0,119240.0,0.02814]
[1753647249508,1.08527139,119250.0,119240.0,0.02814]
[1753647249888,1.02950075,119250.0,119240.0,0.02814]
[1753647250444,0.66664488,119250.0,119240.0,0.02814]
[1753647254718,0.71210112,119240.0,119230.0,0.5]
[1753647255850,0.71210112,119240.0,119230.0,0.501]
[1753647256085,0.96210112,119240.0,119230.0,0.501]
[1753647256312,0.59924525,119240.0,119230.0,0.501]
[1753647256550,0.96210112,119240.0,119230.0,0.501]
[1753647257023,0.93231112,119240.0,119230.0,0.501]
[1753647260150,0.93231112,119240.0,119230.0,0.52384]
[1753647262645,0.93231112,119240.0,119230.0,0.52678]
[1753647264660,0.93225241,119240.0,119230.0,0.52678]
[1753647265069,0.93225241,119240.0,119230.0,0.501]
[1753647265269,0.96294241,119240.0,119230.0,0.501]
[1753647265890,1.30294241,119240.0,119230.0,0.501]
[1753647269259,1.28845241,119240.0,119230.0,0.501]
[1753647269464,1.27225241,119240.0,119230.0,0.501]
[1753647269660,1.27225241,119240.0,119230.0,0.52891]
[1753647281173,1.27225241,119240.0,119230.0,0.53091]
[1753647284144,1.30264241,119240.0,119230.0,0.501]
[1753647285408,1.38711971,119240.0,119230.0,0.501]
[1753647286018,1.74997558,119240.0,119230.0,0.501]
[1753647286220,1.38711971,119240.0,119230.0,0.501]
[1753647286422,1.74997558,119240.0,119230.0,0.501]
[1753647286622,1.40456873,119240.0,119230.0,0.501]
[1753647286793,1.7674246,119240.0,119230.0,0.501]
[1753647287420,1.40456873,119240.0,119230.0,0.5]
[1753647287628,1.7684246,119240.0,119230.0,0.5]
[1753647288052,1.40556873,119240.0,119230.0,0.5]
[1753647290198,1.7684246,119240.0,119230.0,0.5]
[1753647294023,1.40556873,119240.0,119230.0,0.5]
[1753647295226,1.39107873,119240.0,119230.0,0.5]
[1753647295840,1.39107873,119240.0,119230.0,0.52354]
[1753647297087,1.39107873,119240.0,119230.0,0.52661]
[1753647299500,1.37517873,119240.0,119230.0,0.52661]
[1753647304797,0.76705654,119240.0,119230.0,0.54447]
[1753647305002,0.76705654,119240.0,119230.0,0.92242587]
[1753647305003,0.89425654,119240.0,119230.0,0.92242587]
[1753647305223,0.64425654,119240.0,119230.0,1.09016888]
[1753647305428,0.64425654,119240.0,119230.0,0.55957]
[1753647305642,1.00711241,119240.0,119230.0,0.55957]
[1753647306056,0.87991241,119240.0,119230.0,0.55957]
[1753647306276,1.00711241,119240.0,119230.0,0.55957]
[1753647306473,1.00611241,119240.0,119230.0,0.55957]
[1753647307068,1.00611241,119240.0,119230.0,0.56057]
[1753647308184,1.00611241,119240.0,119230.0,0.560256]
[1753647312102,1.00634028,119240.0,119230.0,0.560256]
[1753647312335,0.64348441,119240.0,119230.0,0.560256]
[1753647312495,1.00634028,119240.0,119230.0,0.560256]
[1753647314158,1.27584028,119240.0,119230.0,0.560256]
[1753647315258,1.00634028,119240.0,119230.0,0.560256]
[1753647315994,0.6518705,119240.0,119230.0,1.11601597]
[1753647316221,0.01699984,119240.0,119230.0,1.12440262]
[1753647316418,0.15258614,119240.0,119230.0,1.25160262]
[1753647317137,0.15258607,119240.0,119230.0,1.25160262]
[1753647317332,0.20835664,119240.0,119230.0,1.25160262]
[1753647317544,0.152586,119240.0,119230.0,1.25160262]
[1753647317758,0.1609723,119240.0,119230.0,1.25160262]
[1753647317925,0.152586,119240.0,119230.0,1.25160262]
[1753647318359,0.16097237,119240.0,119230.0,1.25160269]
[1753647318557,0.152586,119240.0,119230.0,1.25160269]
[1753647318820,0.152586,119240.0,119230.0,1.26820926]
[1753647319847,0.14419984,119240.0,119230.0,1.26820926]
[1753647320185,0.15258607,119240.0,119230.0,1.26820926]
[1753647320920,0.14419984,119240.0,119230.0,1.26820926]
[1753647321129,0.00022787,119240.0,119230.0,1.47268656]
[1753647321334,0.00022787,119240.0,119230.0,1.45268656]
[1753647322740,0.00022787,119240.0,119230.0,1.41225125]
[1753647323360,0.00122787,119240.0,119230.0,1.41225125]
[1753647324200,0.00122787,119240.0,119230.0,1.41125125]
[1753647327425,0.00122787,119240.0,119230.0,1.08883069]
[1753647327625,0.00122787,119240.0,119230.0,1.41125125]
[1753647330987,0.00122787,119240.0,119230.0,2.88949311]
[1753647331697,0.00122787,119240.0,119230.0,2.90626211]
[1753647332139,0.00122787,119240.0,119230.0,1.85249755]
[1753647332354,0.00122787,119240.0,119230.0,4.87729455]
[1753647332567,0.00122787,119240.0,119230.0,4.16717055]
[1753647333810,0.00122787,119240.0,119230.0,4.16817055]
[1753647334670,0.00122787,119240.0,119230.0,3.87972755]
[1753647335278,0.00022787,119240.0,119230.0,3.93004755]
[1753647335691,0.00122787,119240.0,119230.0,3.93004755]
[1753647336256,0.00022787,119240.0,119230.0,3.93004755]
[1753647337332,0.00022787,119240.0,119230.0,3.81252755]
[1753647338779,0.00022787,119240.0,119230.0,4.13494811]
[1753647339023,0.00022787,119240.0,119230.0,4.15239713]
[1753647340495,4.853e-05,119250.0,119240.0,4.65170857]
[1753647340698,4.853e-05,119250.0,119240.0,4.48184617]
[1753647340913,4.853e-05,119250.0,119240.0,4.50952617]
[1753647341530,4.853e-05,119250.0,119240.0,4.74917717]
[1753647341739,4.853e-05,119250.0,119240.0,4.75253417]
[1753647341949,0.003,119270.0,119260.0,1.43833264]
[1753647342196,0.00304854,119270.0,119260.0,1.84646724]
[1753647342410,0.00304854,119270.0,119260.0,1.87414724]
[1753647342617,0.00304854,119270.0,119260.0,2.12823824]
[1753647343238,0.00304854,119270.0,119260.0,2.10493824]
[1753647343379,0.00404854,119270.0,119260.0,2.10493824]
[1753647343579,0.00404854,119270.0,119260.0,2.11248924]
[1753647344211,0.00604854,119270.0,119260.0,2.11248924]
[1753647344433,0.00604854,119270.0,119260.0,2.12825724]
[1753647344887,0.00604854,119270.0,119260.0,2.08436524]
[1753647345593,0.00604854,119270.0,119260.0,2.08636524]
[1753647346587,0.00604854,119270.0,119260.0,3.12378924]
[1753647347426,0.00604854,119270.0,119260.0,2.10581324]
[1753647347626,0.00604854,119270.0,119260.0,2.39345424]
[1753647348795,0.00604854,119270.0,119260.0,2.65296424]
[1753647349797,0.00604854,119270.0,119260.0,0.98149024]
[1753647349999,0.00604854,119270.0,119260.0,2.68288924]
[1753647350212,0.00604854,119270.0,119260.0,2.06545724]
[1753647350988,0.00604854,119270.0,119260.0,2.51345124]
[1753647352122,0.00604854,119270.0,119260.0,2.51545124]
[1753647352327,0.00604854,119270.0,119260.0,2.48553624]
[1753647352541,0.00604854,119270.0,119260.0,2.02713824]
[1753647353104,0.00604854,119270.0,119260.0,2.61079324]
[1753647354229,0.00604854,119270.0,119260.0,1.95383224]
[1753647355198,0.00604854,119270.0,119260.0,2.49025424]
[1753647356136,0.00604854,119270.0,119260.0,0.98149024]
[1753647356336,0.00604854,119270.0,119260.0,2.41965424]
[1753647357138,0.00604854,119270.0,119260.0,0.98149024]
[1753647357391,0.00604854,119270.0,119260.0,2.41943824]
[1753647358218,0.00604854,119270.0,119260.0,2.49003824]
[1753647358634,0.00604854,119270.0,119260.0,2.47626324]
[1753647359064,0.00604854,119270.0,119260.0,2.40566324]
[1753647359282,0.00604854,119270.0,119260.0,2.37732224]
[1753647360032,0.00604854,119270.0,119260.0,1.81739124]
[1753647360269,0.00604854,119270.0,119260.0,2.40192124]
[1753647360572,0.00604854,119270.0,119260.0,1.48212068]
[1753647360783,0.00604854,119270.0,119260.0,1.80454124]
[1753647360998,0.00604854,119270.0,119260.0,1.72006394]
[1753647361430,0.00604854,119270.0,119260.0,2.28217694]
[1753647361637,0.00604854,119270.0,119260.0,1.71889694]
[1753647362379,0.00604854,119270.0,119260.0,2.73208294]
[1753647362591,0.00604854,119270.0,119260.0,2.79213124]
[1753647362939,0.00604854,119270.0,119260.0,2.83218836]
[1753647363338,0.00604854,119270.0,119260.0,1.02154736]
[1753647363563,0.00604854,119270.0,119260.0,2.93133136]
[1753647364231,0.00604854,119270.0,119260.0,1.02154736]
[1753647364449,0.00604854,119270.0,119260.0,2.92830736]
[1753647364849,0.00604854,119270.0,119260.0,2.50649136]
[1753647365498,0.00604854,119270.0,119260.0,2.50625336]
[1753647365636,0.00604854,119270.0,119260.0,2.55657336]
[1753647366041,0.00604854,119270.0,119260.0,2.44034836]
[1753647366474,0.00604854,119270.0,119260.0,2.51286736]
[1753647367425,0.00604854,119270.0,119260.0,2.50286736]
[1753647368399,0.00604854,119270.0,119260.0,1.02154736]
[1753647368623,0.00604854,119270.0,119260.0,2.58647436]
[1753647369221,0.00604854,119270.0,119260.0,2.51707036]
[1753647369449,0.00604854,119270.0,119260.0,1.02154736]
[1753647369676,0.00604854,119270.0,119260.0,2.58767036]
[1753647370611,0.00604854,119270.0,119260.0,2.55803936]
[1753647370859,0.00604854,119270.0,119260.0,2.51437336]
[1753647371350,0.00604854,119270.0,119260.0,2.49252536]
[1753647371598,0.00604854,119270.0,119260.0,1.93207936]
[1753647372075,0.00604854,119270.0,119260.0,1.80491936]
[1753647372313,0.02053854,119270.0,119260.0,1.01053006]
[1753647372810,0.02892224,119270.0,119260.0,0.88341006]
[1753647373045,0.05390615,119270.0,119260.0,0.51445238]
[1753647373280,0.04552224,119270.0,119260.0,0.51445238]
[1753647374241,0.03713854,119270.0,119260.0,0.51445238]
[1753647374960,0.03227036,119250.0,119240.0,0.32843626]
[1753647375192,0.24774637,119250.0,119240.0,0.23967817]
[1753647375475,0.08003149,119250.0,119240.0,0.36679817]
[1753647375707,0.24774637,119250.0,119240.0,0.36679817]
[1753647375942,0.55326782,119250.0,119240.0,0.13]
[1753647376176,0.60042127,119250.0,119240.0,0.13]
[1753647376409,0.20811525,119240.0,119230.0,0.63513422]
[1753647376679,0.53040706,119240.0,119230.0,0.71961152]
[1753647376908,0.54489706,119240.0,119230.0,0.7112833]
[1753647377136,0.55328329,119240.0,119230.0,0.88741346]
[1753647377396,0.55351425,119240.0,119230.0,0.88741346]
[1753647377626,0.55351425,119240.0,119230.0,0.89580047]
[1753647377862,0.23122244,119240.0,119230.0,0.95159616]
[1753647378328,0.23122244,119240.0,119230.0,0.95359616]
[1753647381007,0.22283614,119240.0,119230.0,0.76907899]
[1753647382636,0.22283614,119240.0,119230.0,0.94520915]
[1753647383874,0.22283614,119240.0,119230.0,0.76907899]
[1753647384063,0.22283614,119240.0,119230.0,0.77746614]
[1753647384309,0.22283614,119240.0,119230.0,0.94520915]
[1753647384508,0.22283614,119240.0,119230.0,0.95359623]
[1753647384717,0.22283614,119240.0,119230.0,0.94520915]
[1753647384893,0.54512795,119240.0,119230.0,0.94520915]
[1753647385471,0.54512795,119240.0,119230.0,0.95359623]
[1753647385931,0.54512795,119240.0,119230.0,0.76907899]
[1753647386382,0.54512795,119240.0,119230.0,0.532686]
[1753647386591,0.54512795,119240.0,119230.0,0.659846]
[1753647388403,0.54512795,119240.0,119230.0,0.532686]
[1753647391797,0.53063795,119240.0,119230.0,0.532686]
[1753647392935,0.19972895,119240.0,119230.0,0.532686]
[1753647393175,0.52202076,119240.0,119230.0,0.560096]
[1753647393363,0.19972895,119240.0,119230.0,0.560096]
[1753647393808,0.18322895,119240.0,119230.0,0.562166]
[1753647394709,0.52132076,119240.0,119230.0,0.560096]
[1753647395830,0.52132076,119240.0,119230.0,0.66849876]
[1753647397352,0.52132076,119240.0,119230.0,0.64108876]
[1753647397586,0.53581076,119240.0,119230.0,0.64108876]
[1753647399937,0.80531076,119240.0,119230.0,0.64108876]
[1753647401552,0.80531076,119240.0,119230.0,0.61108876]
[1753647403512,0.79082076,119240.0,119230.0,0.61108876]
[1753647404199,0.79867284,119240.0,119230.0,0.61108876]
[1753647406456,0.79867284,119240.0,119230.0,0.63553876]
[1753647406919,0.79867284,119240.0,119230.0,0.61108876]
[1753647408525,0.81316284,119240.0,119230.0,0.61108876]
[1753647409042,0.79867284,119240.0,119230.0,0.61108876]
[1753647409940,0.79868107,119240.0,119230.0,0.61108876]
[1753647410584,0.79082076,119240.0,119230.0,0.63553876]
[1753647410961,1.14531076,119240.0,119230.0,0.61108876]
[1753647411159,1.15317129,119240.0,119230.0,0.61108876]
[1753647411811,1.14531076,119240.0,119230.0,0.61108876]
[1753647413148,1.5599406,119240.0,119230.0,0.61108876]
[1753647414011,1.5599406,119240.0,119230.0,0.60908876]
[1753647414225,1.6676006,119240.0,119230.0,0.60908876]
[1753647414443,1.6676006,119240.0,119230.0,0.61008876]
[1753647414681,1.66760024,119240.0,119230.0,0.61008876]
[1753647414893,1.66760024,119240.0,119230.0,0.60908876]
[1753647416650,1.66760024,119240.0,119230.0,0.60808876]
[1753647418614,1.66860024,119240.0,119230.0,0.60808876]
[1753647419477,1.68604926,119240.0,119230.0,0.60808876]
[1753647419952,1.70176777,119240.0,119230.0,0.60808876]